bitfinex-derivatives/quotes_SOLF0:USTF0_20250903
["timestamp","ask_amount","ask_price","bid_price","bid_amount"]
[1756928342511,7.43,209.58,209.5,4.65]
[1756928342717,7.09022112,209.57,209.52,6.65381054]
[1756928342913,74.0,209.59,209.52,6.65381054]
[1756928342914,7.09022112,209.56,209.52,6.65381054]
[1756928343110,7.43,209.54,209.52,6.65381054]
[1756928343311,3.38020438,209.53,209.52,6.65381054]
[1756928344614,3.38020438,209.53,209.52,4.65]
[1756928346312,7.09346521,209.53,209.51,6.65381054]
[1756928346514,7.43,209.55,209.51,6.65381054]
[1756928346714,14.5263088,209.54,209.51,6.65381054]
[1756928346915,7.0963088,209.53,209.51,6.65381054]
[1756928347116,3.38399284,209.52,209.51,6.65381054]
[1756928347518,3.38399284,209.52,209.51,4.65]
[1756928347717,3.38399284,209.52,209.51,6.65381054]
[1756928350623,7.1007947,209.52,209.51,6.65381054]
[1756928353428,14.3807947,209.52,209.5,2.00381054]
[1756928353630,7.1007947,209.51,209.47,2.00381054]
[1756928353829,7.1007947,209.5,209.47,2.00381054]
[1756928354130,7.28,209.48,209.45,6.65381054]
[1756928354428,3.38399284,209.47,209.45,6.65381054]
[1756928354830,7.28,209.53,209.45,6.65381054]
[1756928355123,7.28,209.51,209.45,6.65381054]
[1756928355322,7.28,209.49,209.45,6.65381054]
[1756928355528,7.11502429,209.48,209.46,4.65]
[1756928355729,3.39817164,209.47,209.46,4.65]
[1756928356131,7.28,209.49,209.46,4.65]
[1756928356426,7.1134765,209.48,209.46,4.65]
[1756928356632,7.28,209.49,209.46,4.65]
[1756928356832,7.11340625,209.48,209.46,4.65]
[1756928357132,7.28,209.53,209.46,4.65]
[1756928357330,7.11292071,209.52,209.46,4.65]
[1756928357626,7.28,209.5,209.46,6.65381054]
[1756928357826,7.28,209.48,209.46,2.00381054]
[1756928358130,3.39712208,209.47,209.46,2.00381054]
[1756928359428,3.39712208,209.47,209.43,4.65]
[1756928359634,3.39665477,209.46,209.42,2.00381054]
[1756928359832,7.28,209.49,209.42,2.00381054]
[1756928360036,7.28,209.47,209.42,2.00381054]
[1756928360230,7.28,209.49,209.42,2.00381054]
[1756928360427,7.10756455,209.48,209.42,2.00381054]
[1756928360733,7.10756455,209.47,209.42,6.65381054]
[1756928360934,7.28,209.49,209.42,6.65381054]
[1756928361134,7.28,209.47,209.42,6.65381054]
[1756928361429,7.28,209.49,209.42,6.65381054]
[1756928361629,7.28,209.47,209.42,6.65381054]
[1756928361933,7.28,209.45,209.42,6.65381054]
[1756928362634,7.28,209.45,209.42,4.65]
[1756928362933,7.28,209.45,209.43,2.00381054]
[1756928364034,7.28,209.49,209.43,2.00381054]
[1756928364231,7.28,209.47,209.43,2.00381054]
[1756928364435,7.28,209.45,209.43,2.00381054]
[1756928366235,7.28,209.51,209.43,6.65381054]
[1756928366431,7.10381638,209.5,209.45,6.65381054]
[1756928366633,7.10381638,209.49,209.45,6.65381054]
[1756928366935,7.28,209.47,209.45,2.00381054]
[1756928367340,7.28,209.47,209.45,6.65381054]
[1756928368241,7.28,209.47,209.45,2.00381054]
[1756928370040,7.28,209.47,209.45,6.65381054]
[1756928370540,3.3940731,209.46,209.45,6.65381054]
[1756928370732,7.28,209.47,209.45,6.65381054]
[1756928371141,2.00381054,209.51,209.44,2.00381054]
[1756928371444,14.38254162,209.5,209.44,2.00381054]
[1756928371643,7.28,209.48,209.44,6.65381054]
[1756928371938,10.67379094,209.47,209.44,6.65381054]
[1756928372138,7.28,209.47,209.44,6.65381054]
[1756928372435,76.00381054,209.53,209.46,2.00381054]
[1756928372640,14.38216216,209.52,209.46,2.00381054]
[1756928372836,7.28,209.5,209.46,2.00381054]
[1756928373041,7.28,209.48,209.46,2.00381054]
[1756928373241,3.39364022,209.47,209.46,2.00381054]
[1756928373534,14.38209618,209.47,209.46,2.00381054]
[1756928373739,10.67364022,209.47,209.46,2.00381054]
[1756928374640,10.67364022,209.47,209.44,2.00381054]
[1756928374841,10.67338109,209.46,209.44,2.00381054]
[1756928375042,7.28,209.46,209.44,2.00381054]
[1756928375242,7.28,209.46,209.44,6.65381054]
[1756928380146,7.28,209.46,209.44,2.00381054]
[1756928380344,7.28,209.46,209.45,4.65]
[1756928380544,7.28,209.46,209.44,2.00381054]
[1756928380739,7.28,209.52,209.44,6.65381054]
[1756928380939,5.31404842,209.55,209.5,6.65381054]
[1756928380940,7.10752887,209.51,209.5,6.65381054]
[1756928381140,7.28,209.56,209.5,6.65381054]
[1756928381345,7.08790183,209.55,209.54,2.00381054]
[1756928381847,3.38181855,209.55,209.54,2.00381054]
[1756928382044,3.38181855,209.55,209.54,6.65381054]
[1756928384152,7.28,209.57,209.54,6.65381054]
[1756928384447,3.37945554,209.56,209.54,6.65381054]
[1756928384643,7.28,209.57,209.54,6.65381054]
[1756928384943,3.37945554,209.56,209.54,6.65381054]
[1756928385146,7.28,209.57,209.54,6.65381054]
[1756928385349,7.28,209.57,209.56,2.00381054]
[1756928385651,10.65901771,209.57,209.56,2.00381054]
[1756928387443,10.65901771,209.57,209.54,4.65]
[1756928387645,11.29901771,209.56,209.55,2.00381054]
[1756928388345,3.37901771,209.56,209.55,6.65381054]
[1756928389151,7.92,209.56,209.55,2.00381054]
[1756928389447,7.92,209.56,209.53,3.12913592]
[1756928389950,7.92,209.56,209.53,4.65]
[1756928390150,7.92,209.56,209.52,3.12913592]
[1756928390449,7.92,209.56,209.53,4.65]
[1756928390845,7.92,209.56,209.49,4.2949]
[1756928390846,7.92,209.62,209.49,3.12913592]
[1756928391052,11.04913592,209.6,209.47,7.77913592]
[1756928391255,7.92,209.58,209.47,7.77913592]
[1756928391455,7.92,209.56,209.47,7.77913592]
[1756928391655,7.92,209.54,209.47,7.77913592]
[1756928393156,3.37729209,209.53,209.47,7.77913592]
[1756928393456,7.92,209.54,209.47,7.77913592]
[1756928393655,3.37729209,209.53,209.47,7.77913592]
[1756928393857,7.92,209.54,209.47,7.77913592]
[1756928394058,3.37729209,209.53,209.47,7.77913592]
[1756928394258,7.92,209.54,209.47,7.77913592]
[1756928394561,3.37733358,209.53,209.47,7.77913592]
[1756928394859,7.92,209.54,209.47,7.77913592]
[1756928397065,7.92,209.54,209.48,4.65]
[1756928400363,3.37718379,209.53,209.45,4.65]
[1756928400569,11.29718379,209.52,209.45,4.65]
[1756928400765,11.29718379,209.51,209.45,4.65]
[1756928400965,7.92,209.51,209.45,4.65]
[1756928402769,7.92,209.49,209.41,4.65]
[1756928403366,3.3779664,209.48,209.41,4.65]
[1756928403670,7.92,209.47,209.41,4.65]
[1756928421078,7.92,209.47,209.37,0.83104478]
[1756928421279,7.92,209.47,209.38,4.66]
[1756928421481,7.74,209.45,209.35,7.78913592]
[1756928422582,7.74,209.45,209.35,4.66]
[1756928422775,7.74,209.45,209.36,4.66]
[1756928422982,7.74,209.45,209.35,3.96034942]
[1756928422983,7.74,209.45,209.39,4.66]
[1756928423981,7.74,209.49,209.42,4.66]
[1756928424186,7.74,209.47,209.42,4.66]
[1756928424380,7.74,209.49,209.42,4.66]
[1756928424578,3.3761889,209.48,209.42,4.66]
[1756928424782,7.74,209.49,209.42,4.66]
[1756928424977,7.74,209.47,209.42,4.66]
[1756928425183,7.74,209.46,209.42,4.66]
[1756928425382,7.74,209.49,209.42,4.66]
[1756928425581,7.74,209.47,209.42,4.66]
[1756928425886,7.74,209.49,209.42,4.66]
[1756928426080,3.37608216,209.48,209.42,4.66]
[1756928426285,7.74,209.49,209.42,4.66]
[1756928426493,7.74,209.47,209.42,4.66]
[1756928426685,7.74,209.49,209.42,4.66]
[1756928426987,3.37602647,209.48,209.42,4.66]
[1756928427288,74.0,209.5,209.42,4.66]
[1756928427484,7.74,209.48,209.42,4.66]
[1756928427888,3.37646739,209.47,209.42,4.66]
[1756928428189,7.74,209.49,209.42,4.66]
[1756928428390,3.37672959,209.48,209.42,4.66]
[1756928428589,3.37672959,209.47,209.42,4.66]
[1756928428791,7.74,209.49,209.42,4.66]
[1756928428989,7.74,209.47,209.42,4.66]
[1756928429189,74.0,209.5,209.42,4.66]
[1756928429387,11.11711308,209.49,209.42,4.66]
[1756928429588,7.74,209.47,209.42,4.66]
[1756928429991,74.0,209.5,209.42,4.66]
[1756928430192,11.11711308,209.49,209.42,4.66]
[1756928430493,7.74,209.47,209.41,7.77913592]
[1756928431083,7.74,209.47,209.41,3.12913592]
[1756928431290,7.74,209.53,209.45,4.65]
[1756928431593,3.37768292,209.52,209.45,4.65]
[1756928431893,3.37768292,209.51,209.45,4.65]
[1756928432093,3.37768292,209.5,209.45,4.65]
[1756928432296,7.74,209.53,209.45,4.2957]
[1756928432502,3.37842525,209.52,209.46,4.65]
[1756928432693,3.37842525,209.51,209.46,4.65]
[1756928432894,7.74,209.53,209.46,4.65]
[1756928433095,3.37822612,209.52,209.46,4.65]
[1756928433394,3.37822612,209.51,209.45,4.2957]
[1756928433595,7.74,209.53,209.46,4.65]
[1756928433894,3.37900305,209.52,209.46,4.65]
[1756928434093,3.37900305,209.51,209.45,4.2957]
[1756928434295,7.74,209.57,209.46,4.65]
[1756928434495,7.74,209.55,209.46,4.65]
[1756928434700,7.74,209.53,209.46,4.65]
[1756928434997,3.38017708,209.52,209.46,4.65]
[1756928435202,3.38017708,209.51,209.45,4.65]
[1756928435403,3.38017708,209.5,209.44,3.12913592]
[1756928435701,7.74,209.52,209.45,4.65]
[1756928435904,3.3810763,209.51,209.45,4.65]
[1756928436205,3.3810763,209.5,209.45,4.65]
[1756928436399,7.74,209.52,209.45,4.65]
[1756928436600,3.3813612,209.51,209.45,4.65]
[1756928436804,3.3813612,209.5,209.44,3.12913592]
[1756928437102,7.74,209.57,209.47,7.77913592]
[1756928437303,7.74,209.55,209.47,7.77913592]
[1756928437506,7.74,209.53,209.47,7.77913592]
[1756928437806,7.74,209.51,209.48,4.65]
[1756928438004,3.38161445,209.5,209.48,4.65]
[1756928438400,3.38161445,209.5,209.47,3.12913592]
[1756928438606,7.74,209.54,209.48,4.65]
[1756928438807,3.38167003,209.53,209.48,4.65]
[1756928439108,7.74,209.54,209.48,4.65]
[1756928439305,3.38197268,209.53,209.47,3.12913592]
[1756928439507,74.0,209.57,209.49,4.295]
[1756928439802,3.38158325,209.56,209.5,3.12913592]
[1756928440006,3.38158325,209.55,209.51,4.65]
[1756928440203,7.74,209.59,209.51,4.65]
[1756928440404,3.38038697,209.58,209.51,4.65]
[1756928440706,3.38038697,209.57,209.53,3.12913592]
[1756928440907,3.38038697,209.56,209.53,3.12913592]
[1756928441108,3.38038697,209.55,209.54,4.65]
[1756928441303,7.74,209.6,209.54,4.65]
[1756928441502,11.11969763,209.59,209.53,7.77913592]
[1756928441798,10.66969763,209.58,209.53,3.12913592]
[1756928442109,3.37969763,209.57,209.54,4.64]
[1756928442404,7.29,209.58,209.53,3.12913592]
[1756928442606,3.3787944,209.57,209.53,3.12913592]
[1756928442806,7.29,209.58,209.54,4.64]
[1756928443005,3.3787944,209.57,209.54,4.64]
[1756928443208,7.29,209.63,209.56,7.76913592]
[1756928443403,3.37769984,209.62,209.56,4.64]
[1756928443604,7.29,209.6,209.56,4.64]
[1756928443809,7.29,209.58,209.56,4.64]
[1756928445811,7.29,209.66,209.54,3.12913592]
[1756928446012,7.29,209.64,209.54,3.12913592]
[1756928446210,7.29,209.62,209.54,3.12913592]
[1756928446511,7.29,209.6,209.54,3.12913592]
[1756928448717,7.29,209.6,209.54,7.76913592]
[1756928449514,74.0,209.67,209.57,2.00240742]
[1756928449515,7.29,209.63,209.57,2.00240742]
[1756928449707,3.37063738,209.62,209.57,2.00240742]
[1756928450007,7.29,209.6,209.57,2.00240742]
[1756928450213,7.29,209.63,209.57,2.00240742]
[1756928450405,2.00240742,209.64,209.57,2.00240742]
[1756928450406,3.36985239,209.62,209.57,2.00240742]
[1756928450605,10.65985239,209.61,209.54,4.64]
[1756928450804,7.29,209.59,209.55,2.00240742]
[1756928451010,7.29,209.59,209.53,2.00240742]
[1756928452517,7.29,209.59,209.51,4.64]
[1756928452715,7.29,209.59,209.52,2.00240742]
[1756928453016,7.29,209.57,209.52,2.00240742]
[1756928453217,7.29,209.6,209.52,2.00240742]
[1756928453418,7.29,209.58,209.52,2.00240742]
[1756928454218,7.29,209.58,209.5,4.64]
[1756928454417,7.29,209.58,209.51,2.00240742]
[1756928457527,7.29,209.56,209.51,2.00240742]
[1756928457722,7.29,209.58,209.51,2.00240742]
[1756928457922,3.36978298,209.57,209.51,2.00240742]
[1756928458121,7.29,209.58,209.51,2.00240742]
[1756928458321,3.36978298,209.57,209.51,2.00240742]
[1756928458521,7.29,209.58,209.51,2.00240742]
[1756928458824,7.29,209.56,209.51,2.00240742]
[1756928459016,7.29,209.58,209.51,2.00240742]
[1756928459215,3.36991033,209.57,209.51,2.00240742]
[1756928459422,7.29,209.58,209.51,2.00240742]
[1756928459724,3.37002274,209.57,209.51,2.00240742]
[1756928459922,7.29,209.58,209.51,2.00240742]
[1756928460224,7.29,209.56,209.51,2.00240742]
[1756928460426,7.29,209.58,209.51,2.00240742]
[1756928460724,7.29,209.56,209.51,2.00240742]
[1756928461027,7.29,209.58,209.51,2.00240742]
[1756928461221,7.29,209.56,209.51,2.00240742]
[1756928461421,7.29,209.58,209.51,2.00240742]
[1756928461621,7.29,209.56,209.51,2.00240742]
[1756928461822,7.29,209.58,209.51,2.00240742]
[1756928462025,7.29,209.56,209.51,2.00240742]
[1756928462219,7.29,209.58,209.51,2.00240742]
[1756928462523,7.29,209.56,209.5,4.64]
[1756928462825,7.29,209.58,209.51,2.00240742]
[1756928463129,3.37033844,209.57,209.51,2.00240742]
[1756928463326,7.29,209.58,209.51,2.00240742]
[1756928463527,7.29,209.56,209.51,2.00240742]
[1756928463737,7.29,209.58,209.51,2.00240742]
[1756928463931,3.37055821,209.57,209.51,2.00240742]
[1756928464229,7.29,209.58,209.51,2.00240742]
[1756928464523,7.29,209.56,209.51,2.00240742]
[1756928464721,7.29,209.58,209.51,2.00240742]
[1756928464918,3.37080907,209.57,209.51,2.00240742]
[1756928465121,2.00240742,209.59,209.51,2.00240742]
[1756928465122,7.29,209.58,209.51,2.00240742]
[1756928465326,7.29,209.56,209.51,2.00240742]
[1756928465527,7.29,209.58,209.51,2.00240742]
[1756928465727,7.29,209.56,209.51,2.00240742]
[1756928465928,7.29,209.58,209.51,2.00240742]
[1756928466126,7.29,209.56,209.51,2.00240742]
[1756928466326,7.29,209.58,209.51,2.00240742]
[1756928466528,2.00240742,209.59,209.51,2.00240742]
[1756928466529,7.29,209.56,209.51,2.00240742]
[1756928466831,7.29,209.58,209.51,2.00240742]
[1756928467025,7.29,209.56,209.51,2.00240742]
[1756928467224,7.29,209.58,209.51,2.00240742]
[1756928467425,3.37231254,209.57,209.51,2.00240742]
[1756928467624,7.29,209.58,209.51,2.00240742]
[1756928467827,3.37251951,209.57,209.51,2.00240742]
[1756928468130,7.29,209.58,209.51,2.00240742]
[1756928468329,7.29,209.56,209.51,2.00240742]
[1756928468530,7.29,209.58,209.51,2.00240742]
[1756928468725,7.29,209.56,209.51,2.00240742]
[1756928468926,7.29,209.58,209.51,2.00240742]
[1756928469126,7.29,209.56,209.51,2.00240742]
[1756928469327,7.29,209.58,209.51,2.00240742]
[1756928469527,7.29,209.56,209.51,2.00240742]
[1756928469724,7.29,209.58,209.51,2.00240742]
[1756928469924,7.29,209.56,209.51,2.00240742]
[1756928470127,7.29,209.57,209.51,2.00240742]
[1756928470330,7.29,209.55,209.51,6.64240742]
[1756928470626,7.29,209.57,209.51,6.64240742]
[1756928470822,3.37380691,209.56,209.51,6.64240742]
[1756928471029,7.29,209.57,209.51,6.64240742]
[1756928471331,7.29,209.55,209.52,4.64]
[1756928472826,2.00240742,209.58,209.52,4.64]
[1756928473130,7.77,209.56,209.53,6.62240742]
[1756928473332,7.77,209.59,209.53,6.62240742]
[1756928473533,7.77,209.57,209.54,4.62]
[1756928473727,3.37655255,209.56,209.54,4.62]
[1756928473927,7.77,209.57,209.54,4.62]
[1756928474127,3.37655294,209.56,209.55,2.00240742]
[1756928474328,3.37655294,209.56,209.55,6.62240742]
[1756928474828,7.77,209.6,209.55,2.00240742]
[1756928475028,7.77,209.6,209.58,2.00240742]
[1756928475029,3.37748071,209.59,209.58,2.00240742]
[1756928475828,11.14748071,209.59,209.56,4.62]
[1756928476032,7.77,209.59,209.57,2.00240742]
[1756928476236,3.37912963,209.58,209.57,2.00240742]
[1756928476733,11.14912963,209.58,209.57,2.00240742]
[1756928477134,7.77,209.58,209.57,2.00240742]
[1756928477334,7.77,209.63,209.57,2.00240742]
[1756928477536,3.37922587,209.62,209.57,4.62]
[1756928477736,3.37922587,209.61,209.57,6.62240742]
[1756928477934,7.77,209.59,209.57,6.62240742]
[1756928478536,2.00240742,209.64,209.57,2.00240742]
[1756928478739,7.77,209.62,209.57,2.00240742]
[1756928478936,3.37949482,209.61,209.57,2.00240742]
[1756928479135,3.37949482,209.6,209.57,2.00240742]
[1756928479338,3.37949482,209.59,209.57,2.00240742]
[1756928479536,7.77,209.58,209.57,2.00240742]
[1756928480338,11.15028894,209.58,209.57,2.00240742]
[1756928481242,3.38028894,209.58,209.57,2.00240742]
[1756928482344,3.38028894,209.58,209.57,6.62240742]
[1756928482542,7.77,209.61,209.57,6.62240742]
[1756928482842,7.77,209.59,209.57,6.62240742]
[1756928483340,3.38228829,209.58,209.57,6.62240742]
[1756928483644,3.38228829,209.58,209.45,7.95598492]
[1756928483645,7.77,209.57,209.49,4.62]
[1756928483840,7.77,209.55,209.52,2.00240742]
[1756928484045,7.77,209.53,209.52,2.00240742]
[1756928485939,7.77,209.53,209.49,6.62240742]
[1756928486147,7.77,209.53,209.5,4.62]
[1756928487649,7.77,209.56,209.5,4.62]
[1756928487845,7.06335773,209.55,209.5,4.62]
[1756928488051,7.06335773,209.54,209.5,4.62]
[1756928488250,7.77,209.52,209.5,4.62]
[1756928489549,7.77,209.56,209.5,4.62]
[1756928489748,7.06282719,209.55,209.5,4.62]
[1756928490052,7.77,209.53,209.5,4.62]
[1756928491051,2.00240742,209.57,209.5,4.62]
[1756928491255,14.83294588,209.56,209.5,4.62]
[1756928491550,7.77,209.54,209.5,4.62]
[1756928491852,11.1528188,209.53,209.5,4.62]
[1756928492053,7.77,209.53,209.5,4.62]
[1756928492655,7.77,209.53,209.5,6.62240742]
[1756928493256,7.77,209.53,209.51,4.62]
[1756928493457,7.77,209.56,209.52,2.00240742]
[1756928493659,3.38274971,209.55,209.52,2.00240742]
[1756928493859,2.00240742,209.59,209.5,4.62]
[1756928493860,3.38284937,209.54,209.5,4.62]
[1756928494055,7.77,209.53,209.51,6.62240742]
[1756928495153,7.77,209.58,209.51,6.62240742]
[1756928495353,7.06369627,209.57,209.51,6.62240742]
[1756928495653,7.06369627,209.56,209.51,6.62240742]
[1756928495853,7.77,209.54,209.51,6.62240742]
[1756928496358,7.77,209.54,209.51,2.00240742]
[1756928496559,7.77,209.54,209.51,6.62240742]
[1756928496855,7.77,209.54,209.52,4.62]
[1756928498254,7.77,209.61,209.53,6.62240742]
[1756928498553,7.77,209.59,209.55,6.62240742]
[1756928498757,7.06369507,209.58,209.55,6.62240742]
[1756928498958,14.83369507,209.57,209.55,6.62240742]
[1756928499254,3.3832241,209.56,209.55,6.62240742]
[1756928500361,7.77,209.61,209.55,2.00240742]
[1756928500660,7.77,209.59,209.55,2.00240742]
[1756928500861,3.38043689,209.58,209.56,4.62]
[1756928501058,3.38043689,209.57,209.56,4.62]
[1756928501261,3.38043689,209.57,209.56,6.62240742]
[1756928502460,3.38043689,209.57,209.56,4.62]
[1756928502761,3.38043689,209.57,209.56,6.62240742]
[1756928503663,7.77,209.59,209.56,6.62240742]
[1756928503866,3.37996795,209.58,209.56,6.62240742]
[1756928504062,7.77,209.59,209.56,6.62240742]
[1756928504262,3.37996833,209.58,209.56,6.62240742]
[1756928504563,7.52,209.58,209.56,6.62240742]
[1756928509466,7.52,209.58,209.56,4.62]
[1756928510469,7.52,209.65,209.54,3.12864257]
[1756928510670,7.52,209.63,209.54,3.12864257]
[1756928510973,7.52,209.61,209.54,3.12864257]
[1756928511272,3.3789357,209.6,209.54,3.12864257]
[1756928511575,3.3789357,209.59,209.54,7.75864257]
[1756928511871,7.52,209.65,209.54,7.75864257]
[1756928512071,7.52,209.63,209.54,7.75864257]
[1756928512271,7.52,209.61,209.54,7.75864257]
[1756928512470,7.52,209.58,209.55,4.63]
[1756928512675,7.52,209.65,209.55,4.63]
[1756928512869,7.52,209.63,209.55,4.63]
[1756928513070,7.52,209.61,209.55,4.63]
[1756928513370,3.37868049,209.6,209.55,4.63]
[1756928513577,7.52,209.58,209.55,4.63]
[1756928513968,79.31404842,209.66,209.55,4.63]
[1756928514171,7.52,209.64,209.55,4.63]
[1756928514373,7.52,209.62,209.55,4.63]
[1756928514671,7.52,209.6,209.55,4.63]
[1756928514875,7.52,209.58,209.55,4.63]
[1756928515175,7.52,209.64,209.55,4.63]
[1756928515375,7.52,209.62,209.55,4.63]
[1756928515582,3.37870971,209.61,209.55,4.63]
[1756928515773,3.37870971,209.6,209.55,4.63]
[1756928516073,7.52,209.58,209.55,4.63]
[1756928516274,7.52,209.64,209.55,4.63]
[1756928516577,7.52,209.62,209.55,4.63]
[1756928516780,7.52,209.6,209.55,4.63]
[1756928516972,10.898752,209.59,209.55,4.63]
[1756928517167,7.52,209.59,209.55,4.63]
[1756928518177,3.3787311,209.58,209.55,4.63]
[1756928518372,7.52,209.59,209.54,3.12864257]
[1756928518572,10.8987606,209.58,209.54,3.12864257]
[1756928518778,7.52,209.58,209.54,3.12864257]
[1756928519173,7.52,209.58,209.55,4.63]
[1756928519678,5.31404842,209.66,209.55,4.63]
[1756928519880,10.89866623,209.65,209.55,4.63]
[1756928520079,7.52,209.63,209.55,4.63]
[1756928520277,7.52,209.61,209.55,4.63]
[1756928520475,7.52,209.59,209.55,4.63]
[1756928520676,7.52,209.65,209.55,4.63]
[1756928520875,7.52,209.63,209.55,4.63]
[1756928521083,3.37861482,209.62,209.55,4.63]
[1756928521278,10.89861482,209.61,209.55,4.63]
[1756928521482,10.89861482,209.6,209.55,4.63]
[1756928521687,10.89861482,209.59,209.54,3.12864257]
[1756928521977,7.52,209.59,209.55,4.63]
[1756928522380,7.52,209.59,209.54,3.12864257]
[1756928522579,7.52,209.65,209.53,3.12864257]
[1756928522779,7.52,209.63,209.53,7.75864257]
[1756928522980,7.52,209.61,209.53,7.75864257]
[1756928523179,10.89850393,209.6,209.53,3.12864257]
[1756928523382,3.37850393,209.59,209.53,3.12864257]
[1756928523589,7.52,209.6,209.54,4.63]
[1756928523781,3.37846599,209.59,209.54,4.63]
[1756928524080,7.52,209.6,209.54,4.63]
[1756928524275,3.3784849,209.59,209.54,4.63]
[1756928524473,3.3784849,209.59,209.51,16.56]
[1756928524474,7.52,209.66,209.56,7.75864257]
[1756928524678,7.52,209.64,209.56,7.75864257]
[1756928524880,7.52,209.62,209.56,7.75864257]
[1756928525078,3.37840344,209.61,209.56,7.75864257]
[1756928525280,7.52,209.59,209.56,7.75864257]
[1756928525780,7.52,209.59,209.56,3.12864257]
[1756928525985,7.52,209.66,209.57,4.63]
[1756928526286,7.52,209.64,209.57,4.63]
[1756928526585,3.37829518,209.63,209.56,3.12864257]
[1756928526887,10.89829518,209.62,209.57,4.63]
[1756928527086,10.89829518,209.61,209.57,4.63]
[1756928527286,10.89829518,209.61,209.56,3.12864257]
[1756928527287,3.37829518,209.6,209.56,3.12864257]
[1756928527487,7.52,209.61,209.56,3.12864257]
[1756928527785,3.37801838,209.6,209.57,4.63]
[1756928527987,7.52,209.61,209.56,3.12864257]
[1756928528189,3.37801838,209.6,209.57,4.63]
[1756928528383,7.52,209.61,209.57,4.63]
[1756928528578,3.37792142,209.6,209.57,4.63]
[1756928528780,7.52,209.6,209.57,4.63]
[1756928528984,7.52,209.6,209.56,3.12864257]
[1756928529383,7.52,209.6,209.57,4.63]
[1756928529985,7.52,209.6,209.56,3.12864257]
[1756928530289,7.52,209.6,209.57,4.63]
[1756928530490,7.52,209.6,209.56,3.12864257]
[1756928530890,7.52,209.6,209.57,4.63]
[1756928531896,7.52,209.6,209.56,3.12864257]
[1756928532097,7.52,209.6,209.57,4.66]
[1756928532792,7.47,209.66,209.57,4.66]
[1756928532993,7.47,209.64,209.57,4.66]
[1756928533195,3.12864257,209.6,209.43,4.66]
[1756928533397,7.47,209.58,209.46,3.12864257]
[1756928533598,7.47,209.56,209.46,3.12864257]
[1756928533789,7.47,209.54,209.47,4.66]
[1756928534192,3.37691047,209.53,209.47,4.66]
[1756928534395,7.47,209.54,209.47,4.66]
[1756928535200,3.37686238,209.53,209.47,4.66]
[1756928535397,7.47,209.54,209.47,4.66]
[1756928535599,3.37698672,209.53,209.47,4.66]
[1756928535898,7.47,209.54,209.47,4.66]
[1756928536195,7.47,209.52,209.47,4.66]
[1756928536394,5.31404842,209.61,209.41,320.62]
[1756928536395,3.37721418,209.51,209.44,119.02864257]
[1756928536700,7.47,209.5,209.44,7.78864257]
[1756928537289,7.47,209.5,209.44,4.66]
[1756928539594,7.47,209.53,209.41,444.32864257]
[1756928539797,7.47,209.51,209.41,444.32864257]
[1756928540000,3.12864257,209.54,209.41,328.40864257]
[1756928540200,7.47,209.52,209.41,328.40864257]
[1756928540399,7.47,209.5,209.41,444.32864257]
[1756928540697,3.12864257,209.54,209.41,444.32864257]
[1756928540898,3.37348719,209.53,209.41,444.32864257]
[1756928541102,3.37348719,209.52,209.41,444.32864257]
[1756928541303,3.37348719,209.51,209.41,444.32864257]
[1756928541503,3.12864257,209.54,209.41,444.32864257]
[1756928541504,7.47,209.49,209.41,444.32864257]
[1756928542499,7.47,209.52,209.41,325.28]
[1756928542698,3.37143755,209.51,209.42,115.92]
[1756928542905,7.47,209.49,209.42,115.92]